[Event "*** Titled Tuesday Blitz"]
[Site "Chess.com"]
[Date "2021.02.02"]
[Round "2"]
[White "ParvizGasimov"]
[Black "mr65"]
[Result "1-0"]
[WhiteElo "2411"]
[BlackElo "2145"]
[TimeControl "180+1"]
[EndTime "10:20:49 PST"]
[Termination "ParvizGasimov won by resignation"]

1. e4 {[%clk 0:03:00.9]} 1... e5 {[%clk 0:02:59.1]} 2. Bc4 {[%clk 0:03:00.1]}
2... Nf6 {[%clk 0:02:58]} 3. d3 {[%clk 0:03:00.5]} 3... Bc5 {[%clk 0:02:56.5]}
4. Nf3 {[%clk 0:03:00.8]} 4... Nc6 {[%clk 0:02:55.1]} 5. c3 {[%clk 0:03:01.1]}
5... O-O {[%clk 0:02:52.5]} 6. O-O {[%clk 0:03:00]} 6... d5 {[%clk 0:02:50.2]}
7. exd5 {[%clk 0:02:59]} 7... Nxd5 {[%clk 0:02:49.8]} 8. a4 {[%clk 0:02:59]}
8... a5 {[%clk 0:02:44.5]} 9. Re1 {[%clk 0:02:55.3]} 9... Nb6 {[%clk 0:02:43.7]}
10. Bb5 {[%clk 0:02:54.2]} 10... Bd6 {[%clk 0:02:42]} 11. Bxc6 {[%clk
0:02:43.5]} 11... bxc6 {[%clk 0:02:40.8]} 12. Nxe5 {[%clk 0:02:44.4]} 12... Qf6
{[%clk 0:02:33.9]} 13. d4 {[%clk 0:02:43]} 13... c5 {[%clk 0:02:32.8]} 14. Nd2
{[%clk 0:02:33.3]} 14... cxd4 {[%clk 0:02:31.2]} 15. cxd4 {[%clk 0:02:34.2]}
15... Bb7 {[%clk 0:02:21.7]} 16. Ne4 {[%clk 0:02:16.8]} 16... Qf5 {[%clk
0:02:10.2]} 17. Ng3 {[%clk 0:01:47.6]} 17... Qf6 {[%clk 0:01:54]} 18. Qh5 {[%clk
0:01:28.9]} 18... Rfe8 {[%clk 0:01:39.6]} 19. Bg5 {[%clk 0:01:22.9]} 19... Qe6
{[%clk 0:01:38.6]} 20. Bd2 {[%clk 0:00:21.4]} 20... f6 {[%clk 0:01:26.5]} 21.
Nf3 {[%clk 0:00:18.6]} 21... Qf7 {[%clk 0:01:25.5]} 22. Qxf7+ {[%clk 0:00:16.8]}
22... Kxf7 {[%clk 0:01:25.2]} 23. Nf5 {[%clk 0:00:15.1]} 23... Bb4 {[%clk
0:01:12.3]} 24. Bxb4 {[%clk 0:00:12.3]} 24... axb4 {[%clk 0:01:11.4]} 25. a5
{[%clk 0:00:10.9]} 25... Nc4 {[%clk 0:01:00]} 26. Rxe8 {[%clk 0:00:10.4]} 26...
Rxe8 {[%clk 0:00:57.8]} 27. b3 {[%clk 0:00:09]} 27... Nd6 {[%clk 0:00:50.1]} 28.
Nxd6+ {[%clk 0:00:07.8]} 28... cxd6 {[%clk 0:00:48.6]} 29. a6 {[%clk 0:00:06.9]}
29... Ra8 {[%clk 0:00:44.2]} 30. a7 {[%clk 0:00:07]} 30... Bxf3 {[%clk
0:00:42.3]} 31. gxf3 {[%clk 0:00:06.6]} 31... Ke7 {[%clk 0:00:42.9]} 32. Kf1
{[%clk 0:00:04.4]} 32... Kd7 {[%clk 0:00:43.1]} 33. Ke2 {[%clk 0:00:04.9]} 33...
Kc7 {[%clk 0:00:42.9]} 34. Kd3 {[%clk 0:00:05.2]} 34... d5 {[%clk 0:00:42]} 35.
Ra4 {[%clk 0:00:04.8]} 35... Kc6 {[%clk 0:00:35.6]} 36. f4 {[%clk 0:00:04.2]}
36... g6 {[%clk 0:00:31.1]} 37. Ke3 {[%clk 0:00:02.2]} 37... Kb6 {[%clk
0:00:28]} 38. Rxb4+ {[%clk 0:00:01.5]} 38... Kxa7 {[%clk 0:00:27.1]} 39. Ra4+
{[%clk 0:00:02.1]} 39... Kb7 {[%clk 0:00:27.1]} 40. Rxa8 {[%clk 0:00:03]} 40...
Kxa8 {[%clk 0:00:27.2]} 41. f5 {[%clk 0:00:02.2]} 41... g5 {[%clk 0:00:25.4]}
42. f4 {[%clk 0:00:02.6]} 42... gxf4+ {[%clk 0:00:17.6]} 43. Kxf4 {[%clk
0:00:02.7]} 43... Kb7 {[%clk 0:00:18]} 44. Kg4 {[%clk 0:00:03.2]} 44... Kb6
{[%clk 0:00:17.4]} 45. Kh5 {[%clk 0:00:03.7]} 45... Kb5 {[%clk 0:00:17.4]} 46.
Kh6 {[%clk 0:00:04.2]} 46... Kb4 {[%clk 0:00:16.8]} 47. Kxh7 {[%clk 0:00:04.8]}
47... Kxb3 {[%clk 0:00:17]} 48. Kg6 {[%clk 0:00:05.4]} 48... Kc4 {[%clk
0:00:17.9]} 49. h4 {[%clk 0:00:05.7]} 49... Kxd4 {[%clk 0:00:18.8]} 50. h5
{[%clk 0:00:06.6]} 50... Kc3 {[%clk 0:00:18.8]} 51. h6 {[%clk 0:00:07.5]} 51...
d4 {[%clk 0:00:19.4]} 52. h7 {[%clk 0:00:08.4]} 52... d3 {[%clk 0:00:20.3]} 53.
h8=Q {[%clk 0:00:08.7]} 53... d2 {[%clk 0:00:21.2]} 54. Qd8 {[%clk 0:00:08.6]}
54... Kc2 {[%clk 0:00:17.8]} 55. Kxf6 {[%clk 0:00:08.8]} 55... d1=Q {[%clk
0:00:15.9]} 56. Qxd1+ {[%clk 0:00:09]} 56... Kxd1 {[%clk 0:00:15.8]} 57. Ke7
{[%clk 0:00:09.9]} 1-0

[Event "*** Titled Tuesday Blitz"]
[Site "Chess.com"]
[Date "2021.02.02"]
[Round "2"]
[White "KononenkoD"]
[Black "Onischuk_V"]
[Result "0-1"]
[WhiteElo "2524"]
[BlackElo "2826"]
[TimeControl "180+1"]
[EndTime "10:20:53 PST"]
[Termination "Onischuk_V won on time"]

1. d4 {[%clk 0:03:00.9]} 1... d6 {[%clk 0:02:59.9]} 2. e4 {[%clk 0:02:59]} 2...
Nf6 {[%clk 0:02:59.6]} 3. Nc3 {[%clk 0:02:58.8]} 3... g6 {[%clk 0:03:00.1]} 4.
f4 {[%clk 0:02:58.6]} 4... Bg7 {[%clk 0:03:00.6]} 5. Nf3 {[%clk 0:02:59]} 5...
O-O {[%clk 0:03:00.1]} 6. Bd3 {[%clk 0:02:59.1]} 6... Na6 {[%clk 0:02:59.4]} 7.
O-O {[%clk 0:02:55.4]} 7... c5 {[%clk 0:02:59.5]} 8. d5 {[%clk 0:02:53.7]} 8...
Bg4 {[%clk 0:02:58.6]} 9. Qe1 {[%clk 0:02:48.5]} 9... Bxf3 {[%clk 0:02:42.5]}
10. Rxf3 {[%clk 0:02:47.1]} 10... Nb4 {[%clk 0:02:43.1]} 11. a3 {[%clk
0:02:43.7]} 11... Nxd3 {[%clk 0:02:40]} 12. cxd3 {[%clk 0:02:41.5]} 12... Qb6
{[%clk 0:02:39.7]} 13. Kh1 {[%clk 0:02:40.4]} 13... Qb3 {[%clk 0:02:36.9]} 14.
Rh3 {[%clk 0:02:30.5]} 14... b5 {[%clk 0:02:25.8]} 15. Bd2 {[%clk 0:01:49.5]}
15... Rfc8 {[%clk 0:01:49.4]} 16. Nd1 {[%clk 0:01:41.7]} 16... h5 {[%clk
0:01:23.1]} 17. Bc3 {[%clk 0:01:33.8]} 17... a5 {[%clk 0:01:10]} 18. Bxf6 {[%clk
0:01:00.6]} 18... Bxf6 {[%clk 0:01:09.1]} 19. Rc1 {[%clk 0:00:54.6]} 19... Qa4
{[%clk 0:00:31.3]} 20. Nc3 {[%clk 0:00:43.1]} 20... Qd4 {[%clk 0:00:23.6]} 21.
Rc2 {[%clk 0:00:33]} 21... Rab8 {[%clk 0:00:19.3]} 22. Re2 {[%clk 0:00:25.7]}
22... c4 {[%clk 0:00:17.4]} 23. dxc4 {[%clk 0:00:23.2]} 23... Rxc4 {[%clk
0:00:16.6]} 24. e5 {[%clk 0:00:22.8]} 24... Bg7 {[%clk 0:00:15.1]} 25. Re4
{[%clk 0:00:20.6]} 25... Qc5 {[%clk 0:00:14.5]} 26. e6 {[%clk 0:00:17.6]} 26...
f5 {[%clk 0:00:14.1]} 27. Ree3 {[%clk 0:00:16.5]} 27... b4 {[%clk 0:00:14]} 28.
axb4 {[%clk 0:00:15.4]} 28... axb4 {[%clk 0:00:13.9]} 29. Ne2 {[%clk 0:00:15.3]}
29... Qxd5 {[%clk 0:00:13.3]} 30. Rhg3 {[%clk 0:00:13.3]} 30... Kh7 {[%clk
0:00:13]} 31. Ng1 {[%clk 0:00:12.8]} 31... Rbc8 {[%clk 0:00:13]} 32. Rd3 {[%clk
0:00:12.8]} 32... Qe4 {[%clk 0:00:11.5]} 33. Qf2 {[%clk 0:00:11.3]} 33... Rc2
{[%clk 0:00:11.1]} 34. Rd2 {[%clk 0:00:10.8]} 34... Rxd2 {[%clk 0:00:10.9]} 35.
Qxd2 {[%clk 0:00:11.7]} 35... Qxe6 {[%clk 0:00:11]} 36. Re3 {[%clk 0:00:11.1]}
36... Qf7 {[%clk 0:00:11.1]} 37. Qe2 {[%clk 0:00:11.1]} 37... Bf6 {[%clk
0:00:11.3]} 38. h3 {[%clk 0:00:11.4]} 38... Kg7 {[%clk 0:00:11.4]} 39. Nf3
{[%clk 0:00:11.3]} 39... Rc7 {[%clk 0:00:11.7]} 40. Re6 {[%clk 0:00:10]} 40...
Rc1+ {[%clk 0:00:10.6]} 41. Kh2 {[%clk 0:00:09.7]} 41... Rc2 {[%clk 0:00:11]}
42. Qe3 {[%clk 0:00:07.5]} 42... Rxb2 {[%clk 0:00:11.1]} 43. Ng5 {[%clk
0:00:07.8]} 43... Bxg5 {[%clk 0:00:10.4]} 44. fxg5 {[%clk 0:00:08.7]} 44... Kf8
{[%clk 0:00:10.8]} 45. Qe1 {[%clk 0:00:05.9]} 45... Rc2 {[%clk 0:00:10]} 46. Re3
{[%clk 0:00:05.7]} 46... Rc4 {[%clk 0:00:10.1]} 47. Qe2 {[%clk 0:00:05.3]} 47...
Re4 {[%clk 0:00:10.2]} 48. Rxe4 {[%clk 0:00:05.2]} 48... fxe4 {[%clk 0:00:10.5]}
49. Qxe4 {[%clk 0:00:05.8]} 49... b3 {[%clk 0:00:11.1]} 50. Qa8+ {[%clk
0:00:05.4]} 50... Kg7 {[%clk 0:00:11.4]} 51. Qa1+ {[%clk 0:00:05.9]} 51... Kh7
{[%clk 0:00:11.4]} 52. Qc3 {[%clk 0:00:05.7]} 52... Qd5 {[%clk 0:00:11.3]} 53.
Kh1 {[%clk 0:00:02.7]} 53... Qd1+ {[%clk 0:00:10.7]} 54. Kh2 {[%clk 0:00:02.2]}
54... Qd5 {[%clk 0:00:10.6]} 55. Kh1 {[%clk 0:00:02]} 55... Kg8 {[%clk 0:00:11]}
56. Qb4 {[%clk 0:00:01.3]} 56... Kf7 {[%clk 0:00:11]} 57. Kh2 {[%clk 0:00:01]}
57... Qe5+ {[%clk 0:00:10.9]} 58. Kh1 {[%clk 0:00:01.3]} 58... b2 {[%clk
0:00:11.5]} 59. Qb3+ {[%clk 0:00:01.7]} 59... Kg7 {[%clk 0:00:11.6]} 0-1

[Event "*** Titled Tuesday Blitz"]
[Site "Chess.com"]
[Date "2021.02.02"]
[Round "2"]
[White "woodhy"]
[Black "novocane"]
[Result "1-0"]
[WhiteElo "2474"]
[BlackElo "2276"]
[TimeControl "180+1"]
[EndTime "10:20:53 PST"]
[Termination "woodhy won by resignation"]

1. e4 {[%clk 0:03:00.9]} 1... c5 {[%clk 0:02:59.8]} 2. Nf3 {[%clk 0:03:00.7]}
2... Nc6 {[%clk 0:02:59.7]} 3. d4 {[%clk 0:03:00.2]} 3... cxd4 {[%clk
0:03:00.6]} 4. Nxd4 {[%clk 0:03:01]} 4... e5 {[%clk 0:03:00.9]} 5. Nb5 {[%clk
0:03:00.9]} 5... d6 {[%clk 0:03:01.2]} 6. N1c3 {[%clk 0:03:00.8]} 6... a6 {[%clk
0:03:01.2]} 7. Na3 {[%clk 0:03:01.1]} 7... Be7 {[%clk 0:03:00.8]} 8. Nd5 {[%clk
0:02:59.8]} 8... Nf6 {[%clk 0:02:59.8]} 9. Nxf6+ {[%clk 0:02:52.7]} 9... Bxf6
{[%clk 0:02:59.7]} 10. Nc4 {[%clk 0:02:53.6]} 10... O-O {[%clk 0:02:54.2]} 11.
Qxd6 {[%clk 0:02:50]} 11... Qxd6 {[%clk 0:02:53.2]} 12. Nxd6 {[%clk 0:02:50.9]}
12... Nb4 {[%clk 0:02:53.1]} 13. Bd3 {[%clk 0:02:49.4]} 13... Rd8 {[%clk
0:02:51.3]} 14. Nxc8 {[%clk 0:02:48.8]} 14... Raxc8 {[%clk 0:02:51.2]} 15. Bd2
{[%clk 0:02:19]} 15... Rxc2 {[%clk 0:01:54.9]} 16. Bxc2 {[%clk 0:02:19.9]} 16...
Nxc2+ {[%clk 0:01:55]} 17. Ke2 {[%clk 0:02:17.4]} 17... Nxa1 {[%clk 0:01:54.9]}
18. Rxa1 {[%clk 0:02:15.3]} 18... h6 {[%clk 0:01:16.1]} 19. Bc3 {[%clk
0:02:03.3]} 19... Kf8 {[%clk 0:01:12]} 20. a4 {[%clk 0:02:01]} 20... Ke7 {[%clk
0:01:11.4]} 21. Ra3 {[%clk 0:02:01.1]} 21... Ke6 {[%clk 0:01:11.1]} 22. Rb3
{[%clk 0:02:01.5]} 22... Rd7 {[%clk 0:01:09.8]} 23. Rb6+ {[%clk 0:02:01.4]}
23... Ke7 {[%clk 0:01:09.8]} 24. f3 {[%clk 0:01:23.6]} 24... h5 {[%clk
0:01:06.3]} 25. h3 {[%clk 0:01:18.3]} 25... Kd8 {[%clk 0:01:02.4]} 26. f4 {[%clk
0:01:04.5]} 26... Re7 {[%clk 0:00:47.9]} 27. Kf3 {[%clk 0:00:52.5]} 27... Rc7
{[%clk 0:00:34.1]} 28. fxe5 {[%clk 0:00:38.9]} 28... Be7 {[%clk 0:00:33.9]} 29.
e6 {[%clk 0:00:36.7]} 29... Bc5 {[%clk 0:00:26.7]} 30. Rb3 {[%clk 0:00:28.3]}
30... fxe6 {[%clk 0:00:26.6]} 31. Ba5 {[%clk 0:00:27.7]} 31... b6 {[%clk
0:00:27.1]} 32. Bxb6 {[%clk 0:00:27.4]} 32... Bxb6 {[%clk 0:00:27.1]} 33. Rxb6
{[%clk 0:00:28.3]} 33... Rc2 {[%clk 0:00:21.3]} 34. Rxe6 {[%clk 0:00:22.2]}
34... Rxb2 {[%clk 0:00:20.9]} 35. Rxa6 {[%clk 0:00:22.3]} 35... Ke7 {[%clk
0:00:17.9]} 36. g4 {[%clk 0:00:21.4]} 36... hxg4+ {[%clk 0:00:16.2]} 37. hxg4
{[%clk 0:00:22.3]} 37... g5 {[%clk 0:00:15.3]} 38. Rg6 {[%clk 0:00:15.2]} 38...
Rb3+ {[%clk 0:00:13.8]} 39. Kf2 {[%clk 0:00:15.6]} 39... Rb4 {[%clk 0:00:14.3]}
40. Rxg5 {[%clk 0:00:14.5]} 40... Rxe4 {[%clk 0:00:14.5]} 41. a5 {[%clk
0:00:14.2]} 41... Kf6 {[%clk 0:00:13.5]} 42. Rf5+ {[%clk 0:00:14.5]} 42... Kg6
{[%clk 0:00:13.9]} 43. Kf3 {[%clk 0:00:15.4]} 43... Ra4 {[%clk 0:00:14.4]} 44.
Rb5 {[%clk 0:00:14.9]} 44... Kf6 {[%clk 0:00:12]} 45. Kg3 {[%clk 0:00:14.8]}
45... Kg6 {[%clk 0:00:12.3]} 46. Kh4 {[%clk 0:00:15]} 46... Kh6 {[%clk
0:00:12.4]} 47. Rb6+ {[%clk 0:00:15.3]} 47... Kg7 {[%clk 0:00:12.6]} 48. a6
{[%clk 0:00:16.2]} 48... Ra5 {[%clk 0:00:12.5]} 49. g5 {[%clk 0:00:13.9]} 49...
Ra1 {[%clk 0:00:13.4]} 50. Rb7+ {[%clk 0:00:13.5]} 50... Kg6 {[%clk 0:00:13.3]}
51. Rb6+ {[%clk 0:00:12.4]} 51... Kg7 {[%clk 0:00:13.3]} 52. Kg4 {[%clk
0:00:12.8]} 52... Rg1+ {[%clk 0:00:10.6]} 53. Kf5 {[%clk 0:00:13]} 53... Rf1+
{[%clk 0:00:11.2]} 54. Ke5 {[%clk 0:00:13.2]} 54... Re1+ {[%clk 0:00:11.5]} 55.
Kd6 {[%clk 0:00:12.3]} 55... Rd1+ {[%clk 0:00:10.3]} 56. Kc7 {[%clk 0:00:12.4]}
56... Rg1 {[%clk 0:00:04.9]} 57. a7 {[%clk 0:00:11.9]} 57... Ra1 {[%clk
0:00:04.3]} 58. Kb8 {[%clk 0:00:11.7]} 1-0

[Event "*** Titled Tuesday Blitz"]
[Site "Chess.com"]
[Date "2021.02.02"]
[Round "2"]
[White "klimkoj"]
[Black "sergoy"]
[Result "1/2-1/2"]
[WhiteElo "2569"]
[BlackElo "2869"]
[TimeControl "180+1"]
[EndTime "10:20:54 PST"]
[Termination "Game drawn by repetition"]

1. Nf3 {[%clk 0:03:00.9]} 1... Nf6 {[%clk 0:02:58.6]} 2. c4 {[%clk 0:02:58.2]}
2... c6 {[%clk 0:02:58.7]} 3. g3 {[%clk 0:02:57.5]} 3... d5 {[%clk 0:02:59.2]}
4. cxd5 {[%clk 0:02:57.3]} 4... cxd5 {[%clk 0:02:59.1]} 5. Bg2 {[%clk
0:02:57.4]} 5... Nc6 {[%clk 0:02:59.5]} 6. d4 {[%clk 0:02:55.9]} 6... Bf5 {[%clk
0:02:59.4]} 7. O-O {[%clk 0:02:55.7]} 7... e6 {[%clk 0:02:59.8]} 8. Nc3 {[%clk
0:02:54.1]} 8... Be7 {[%clk 0:02:59.6]} 9. Nh4 {[%clk 0:02:53.6]} 9... Bg4
{[%clk 0:02:58.9]} 10. h3 {[%clk 0:02:45.3]} 10... Bh5 {[%clk 0:02:58.9]} 11.
Bg5 {[%clk 0:02:30.7]} 11... O-O {[%clk 0:02:55.6]} 12. g4 {[%clk 0:02:05]}
12... Bg6 {[%clk 0:02:39.3]} 13. Nxg6 {[%clk 0:02:03.2]} 13... hxg6 {[%clk
0:02:40.2]} 14. e3 {[%clk 0:02:00]} 14... Rc8 {[%clk 0:02:34.4]} 15. Qe2 {[%clk
0:01:52.6]} 15... Na5 {[%clk 0:02:34.1]} 16. Rac1 {[%clk 0:01:50.6]} 16... Nc4
{[%clk 0:02:33.1]} 17. b3 {[%clk 0:01:28.4]} 17... Nd6 {[%clk 0:02:32.5]} 18.
Bxf6 {[%clk 0:01:20.9]} 18... Bxf6 {[%clk 0:02:32.3]} 19. Nb5 {[%clk 0:01:12.1]}
19... Qd7 {[%clk 0:02:18.9]} 20. Nxd6 {[%clk 0:01:10.9]} 20... Qxd6 {[%clk
0:02:19.8]} 21. Qb5 {[%clk 0:01:02.9]} 21... b6 {[%clk 0:02:10.5]} 22. Qa4
{[%clk 0:00:57.6]} 22... Rc7 {[%clk 0:02:02.7]} 23. Rxc7 {[%clk 0:00:23.2]}
23... Qxc7 {[%clk 0:02:03.6]} 24. b4 {[%clk 0:00:23.2]} 24... Rc8 {[%clk
0:02:02.7]} 25. Rd1 {[%clk 0:00:20.3]} 25... Be7 {[%clk 0:02:02.9]} 26. Bf1
{[%clk 0:00:18.9]} 26... g5 {[%clk 0:01:52.4]} 27. Kg2 {[%clk 0:00:18.2]} 27...
Bd8 {[%clk 0:01:48.6]} 28. Bd3 {[%clk 0:00:17.9]} 28... Qd6 {[%clk 0:01:45.2]}
29. Rd2 {[%clk 0:00:16]} 29... Bc7 {[%clk 0:01:44.9]} 30. Rc2 {[%clk 0:00:13.9]}
30... Qh2+ {[%clk 0:01:42.8]} 31. Kf1 {[%clk 0:00:11.8]} 31... Qxh3+ {[%clk
0:01:42.9]} 32. Ke1 {[%clk 0:00:11.5]} 32... Qxg4 {[%clk 0:00:45.9]} 33. Rxc7
{[%clk 0:00:10.6]} 33... Rf8 {[%clk 0:00:43.4]} 34. Qd7 {[%clk 0:00:10.4]} 34...
Qg1+ {[%clk 0:00:42.4]} 35. Ke2 {[%clk 0:00:10.5]} 35... Qg4+ {[%clk 0:00:35.7]}
36. Kd2 {[%clk 0:00:09.9]} 36... Qf3 {[%clk 0:00:34.6]} 37. Ke1 {[%clk
0:00:06.6]} 37... Qh1+ {[%clk 0:00:33.4]} 38. Ke2 {[%clk 0:00:03.7]} 38... g4
{[%clk 0:00:30.3]} 39. Rc8 {[%clk 0:00:03.3]} 39... Qf3+ {[%clk 0:00:24.2]} 40.
Ke1 {[%clk 0:00:03.4]} 40... g6 {[%clk 0:00:24.8]} 41. Rxf8+ {[%clk 0:00:03.2]}
41... Kxf8 {[%clk 0:00:25.7]} 42. Qd8+ {[%clk 0:00:04.1]} 42... Kg7 {[%clk
0:00:25.8]} 43. Qh4 {[%clk 0:00:05]} 43... Qg2 {[%clk 0:00:18.9]} 44. Qg3 {[%clk
0:00:04.9]} 44... Qh1+ {[%clk 0:00:18.9]} 45. Ke2 {[%clk 0:00:04.6]} 45... f5
{[%clk 0:00:17.7]} 46. Qe5+ {[%clk 0:00:04.6]} 46... Kf7 {[%clk 0:00:18.4]} 47.
Qc7+ {[%clk 0:00:04.5]} 47... Kf6 {[%clk 0:00:19.1]} 48. Qd8+ {[%clk 0:00:04.8]}
48... Kf7 {[%clk 0:00:19.1]} 49. Qd7+ {[%clk 0:00:05.2]} 49... Kf6 {[%clk
0:00:19.6]} 50. Qd8+ {[%clk 0:00:05.6]} 50... Kf7 {[%clk 0:00:19.6]} 51. Qd7+
{[%clk 0:00:06]} 51... Kf6 {[%clk 0:00:20]} 52. Qe8 {[%clk 0:00:05.5]} 52...
Qf3+ {[%clk 0:00:19.4]} 53. Ke1 {[%clk 0:00:05]} 53... Qh1+ {[%clk 0:00:19.7]}
54. Kd2 {[%clk 0:00:04.3]} 54... Qa1 {[%clk 0:00:19.7]} 55. Qd8+ {[%clk
0:00:02.6]} 55... Kf7 {[%clk 0:00:20]} 56. Qd7+ {[%clk 0:00:03]} 56... Kf6
{[%clk 0:00:20.5]} 57. Qd8+ {[%clk 0:00:03.5]} 57... Kf7 {[%clk 0:00:21]} 58.
Qd7+ {[%clk 0:00:03.9]} 58... Kf8 {[%clk 0:00:21.4]} 59. Qd8+ {[%clk 0:00:04.4]}
59... Kf7 {[%clk 0:00:20.7]} 1/2-1/2

[Event "*** Titled Tuesday Blitz"]
[Site "Chess.com"]
[Date "2021.02.02"]
[Round "2"]
[White "petrkostenko"]
[Black "glebus008"]
[Result "1/2-1/2"]
[WhiteElo "2450"]
[BlackElo "2259"]
[TimeControl "180+1"]
[EndTime "10:20:54 PST"]
[Termination "Game drawn by repetition"]

1. e4 {[%clk 0:03:00.9]} 1... c5 {[%clk 0:02:59.4]} 2. Nf3 {[%clk 0:02:56]} 2...
Nc6 {[%clk 0:02:59.4]} 3. d4 {[%clk 0:02:54.8]} 3... cxd4 {[%clk 0:03:00.3]} 4.
Nxd4 {[%clk 0:02:55.3]} 4... g6 {[%clk 0:02:59.2]} 5. c4 {[%clk 0:02:53.9]} 5...
Nf6 {[%clk 0:02:56.5]} 6. Nc3 {[%clk 0:02:49.8]} 6... Nxd4 {[%clk 0:02:42.3]} 7.
Qxd4 {[%clk 0:02:49.2]} 7... d6 {[%clk 0:02:37.6]} 8. Be3 {[%clk 0:02:32.4]}
8... Bg7 {[%clk 0:02:35.1]} 9. Be2 {[%clk 0:02:24.2]} 9... O-O {[%clk
0:02:34.3]} 10. Qd2 {[%clk 0:02:24.2]} 10... Be6 {[%clk 0:02:22.1]} 11. Rc1
{[%clk 0:02:21.1]} 11... Qa5 {[%clk 0:02:21]} 12. f3 {[%clk 0:02:08]} 12... Rfc8
{[%clk 0:02:15.8]} 13. b3 {[%clk 0:02:08.1]} 13... a6 {[%clk 0:01:55.2]} 14. Na4
{[%clk 0:02:07.7]} 14... Qxd2+ {[%clk 0:01:51.4]} 15. Kxd2 {[%clk 0:02:08.1]}
15... Nd7 {[%clk 0:01:46.6]} 16. g4 {[%clk 0:02:08.5]} 16... Rc7 {[%clk
0:01:23.8]} 17. g5 {[%clk 0:02:04.8]} 17... Rac8 {[%clk 0:01:20.5]} 18. h4
{[%clk 0:01:57.5]} 18... Nc5 {[%clk 0:00:46.5]} 19. Nb6 {[%clk 0:01:44.8]} 19...
Re8 {[%clk 0:00:44.2]} 20. h5 {[%clk 0:01:41.8]} 20... Nd7 {[%clk 0:00:29]} 21.
h6 {[%clk 0:01:16.7]} 21... Bh8 {[%clk 0:00:27.4]} 22. f4 {[%clk 0:01:00.7]}
22... Nxb6 {[%clk 0:00:24.8]} 23. Bxb6 {[%clk 0:00:59.8]} 23... Rc6 {[%clk
0:00:22.9]} 24. Be3 {[%clk 0:00:59.2]} 24... Rec8 {[%clk 0:00:20.5]} 25. Bd3
{[%clk 0:00:55.2]} 25... Bd7 {[%clk 0:00:17.5]} 26. a4 {[%clk 0:00:50.7]} 26...
R6c7 {[%clk 0:00:17.1]} 27. a5 {[%clk 0:00:45.6]} 27... Bb2 {[%clk 0:00:16.1]}
28. Rc2 {[%clk 0:00:42.8]} 28... Ba3 {[%clk 0:00:16.3]} 29. Bb6 {[%clk
0:00:32.4]} 29... Rc6 {[%clk 0:00:15.8]} 30. Kc3 {[%clk 0:00:28.6]} 30... Bc5
{[%clk 0:00:15.2]} 31. Bxc5 {[%clk 0:00:27.5]} 31... dxc5 {[%clk 0:00:13.5]} 32.
e5 {[%clk 0:00:23.1]} 32... Bf5 {[%clk 0:00:13.1]} 33. Bxf5 {[%clk 0:00:22.7]}
33... gxf5 {[%clk 0:00:14]} 34. Rd1 {[%clk 0:00:22.5]} 34... Kf8 {[%clk
0:00:13.1]} 35. Rcd2 {[%clk 0:00:23]} 35... R6c7 {[%clk 0:00:12.9]} 36. Rd7
{[%clk 0:00:19.3]} 36... Ke8 {[%clk 0:00:10.5]} 37. Rxc7 {[%clk 0:00:15.9]}
37... Rxc7 {[%clk 0:00:11.4]} 38. b4 {[%clk 0:00:15.4]} 38... cxb4+ {[%clk
0:00:10.9]} 39. Kxb4 {[%clk 0:00:15.7]} 39... Rd7 {[%clk 0:00:11.8]} 40. Rd5
{[%clk 0:00:15.5]} 40... Rc7 {[%clk 0:00:10.9]} 41. c5 {[%clk 0:00:15]} 41... e6
{[%clk 0:00:10.9]} 42. Rd6 {[%clk 0:00:14.6]} 42... Ke7 {[%clk 0:00:11.1]} 43.
Kc4 {[%clk 0:00:15]} 43... Ke8 {[%clk 0:00:10.9]} 44. Rb6 {[%clk 0:00:14.9]}
44... Kd7 {[%clk 0:00:10.6]} 45. Kd4 {[%clk 0:00:14.3]} 45... Kc8 {[%clk
0:00:10]} 46. Rd6 {[%clk 0:00:13.8]} 46... Rd7 {[%clk 0:00:09.6]} 47. c6 {[%clk
0:00:11.9]} 47... bxc6 {[%clk 0:00:08.1]} 48. Kc5 {[%clk 0:00:11]} 48... Rc7
{[%clk 0:00:06.5]} 49. Rxc6 {[%clk 0:00:08.8]} 49... Kb7 {[%clk 0:00:06.7]} 50.
Rxc7+ {[%clk 0:00:08.4]} 50... Kxc7 {[%clk 0:00:07.6]} 51. Kd4 {[%clk
0:00:08.9]} 51... Kb7 {[%clk 0:00:06.4]} 52. Kc3 {[%clk 0:00:08]} 52... Kc7
{[%clk 0:00:06.2]} 53. Kb4 {[%clk 0:00:07.5]} 53... Kb7 {[%clk 0:00:04.6]} 54.
Kc3 {[%clk 0:00:06.1]} 54... Kc7 {[%clk 0:00:04.6]} 55. Kd4 {[%clk 0:00:06.3]}
55... Kb7 {[%clk 0:00:04.5]} 56. Kc5 {[%clk 0:00:06.5]} 56... Kc7 {[%clk
0:00:04.6]} 57. Kb4 {[%clk 0:00:06.7]} 57... Kb7 {[%clk 0:00:05]} 58. Kc3 {[%clk
0:00:07]} 1/2-1/2